[Event "Božićni turnir u VaraždinskimToplicama 26.12.2025."]
[Site "Varazdinske Toplice, Croatia"]
[Date "2025.12.26"]
[Round "5.13"]
[White "Bicanic, Mile"]
[Black "Bedekovic, Jakov"]
[Result "1-0"]
[TimeControl "10"]
[WhiteFideId "14579995"]
[BlackFideId "14596458"]
[WhiteElo "1761"]
[BlackElo "1965"]

1. d4 {[%clk 00:09:59]} f5 {[%clk 00:09:59]} {[%emt 00:00:02]} 2. Bf4 {[%clk
00:09:58]} {[%emt 00:00:01]} Nf6 {[%clk 00:09:58]} {[%emt 00:00:02]} 3. e3
{[%clk 00:09:56]} {[%emt 00:00:02]} g6 {[%clk 00:09:55]} {[%emt 00:00:02]} 4.
Nf3 {[%clk 00:09:47]} {[%emt 00:00:09]} Bg7 {[%clk 00:09:48]} {[%emt 00:00:08]}
5. h3 {[%clk 00:09:46]} {[%emt 00:00:01]} O-O {[%clk 00:09:45]} {[%emt
00:00:02]} 6. Nbd2 {[%clk 00:09:36]} {[%emt 00:00:10]} d6 {[%clk 00:09:36]}
{[%emt 00:00:09]} 7. Bc4+ {[%clk 00:09:28]} {[%emt 00:00:08]} e6 {[%clk
00:09:32]} {[%emt 00:00:03]} 8. Qe2 {[%clk 00:09:09]} {[%emt 00:00:20]} c6
{[%clk 00:09:21]} {[%emt 00:00:12]} 9. Bb3 {[%clk 00:09:05]} {[%emt 00:00:04]}
a5 {[%clk 00:09:18]} {[%emt 00:00:03]} 10. a4 {[%clk 00:09:01]} {[%emt
00:00:03]} Na6 {[%clk 00:09:03]} {[%emt 00:00:15]} 11. c3 {[%clk 00:08:58]}
{[%emt 00:00:03]} Qe7 {[%clk 00:08:45]} {[%emt 00:00:18]} 12. O-O {[%clk
00:08:52]} {[%emt 00:00:06]} Nc7 {[%clk 00:08:41]} {[%emt 00:00:04]} 13. Nc4
{[%clk 00:08:46]} {[%emt 00:00:07]} Rd8 {[%clk 00:08:18]} {[%emt 00:00:22]} 14.
Nb6 {[%clk 00:08:19]} {[%emt 00:00:28]} Ra6 {[%clk 00:08:15]} {[%emt 00:00:02]}
15. Nxc8 {[%clk 00:08:13]} {[%emt 00:00:06]} Rxc8 {[%clk 00:08:14]} {[%emt
00:00:01]} 16. Nd2 {[%clk 00:07:56]} {[%emt 00:00:17]} Nfd5 {[%clk 00:07:53]}
{[%emt 00:00:21]} 17. Bg3 {[%clk 00:07:49]} {[%emt 00:00:08]} Kh8 {[%clk
00:07:35]} {[%emt 00:00:17]} 18. e4 {[%clk 00:07:42]} {[%emt 00:00:07]} Nb6
{[%clk 00:06:47]} {[%emt 00:00:49]} 19. exf5 {[%clk 00:07:29]} {[%emt
00:00:12]} gxf5 {[%clk 00:06:42]} {[%emt 00:00:05]} 20. Rfe1 {[%clk 00:07:19]}
{[%emt 00:00:10]} Re8 {[%clk 00:06:28]} {[%emt 00:00:14]} 21. Bc2 {[%clk
00:06:52]} {[%emt 00:00:26]} Rf8 {[%clk 00:06:12]} {[%emt 00:00:17]} 22. Qh5
{[%clk 00:06:23]} {[%emt 00:00:29]} Nbd5 {[%clk 00:05:52]} {[%emt 00:00:20]} 23.
Nc4 {[%clk 00:06:00]} {[%emt 00:00:23]} Nf6 {[%clk 00:05:36]} {[%emt 00:00:17]}
24. Qxf5 {[%clk 00:05:41]} {[%emt 00:00:18]} Qf7 {[%clk 00:05:02]} {[%emt
00:00:33]} 25. Qd3 {[%clk 00:05:24]} {[%emt 00:00:17]} c5 {[%clk 00:04:32]}
{[%emt 00:00:30]} 26. Bxd6 {[%clk 00:04:52]} {[%emt 00:00:32]} cxd4 {[%clk
00:03:40]} {[%emt 00:00:53]} 27. Bxf8 {[%clk 00:03:59]} {[%emt 00:00:53]} Bxf8
{[%clk 00:03:38]} {[%emt 00:00:02]} 28. Qxd4 {[%clk 00:03:42]} {[%emt
00:00:17]} Ncd5 {[%clk 00:03:32]} {[%emt 00:00:07]} 29. Ne5 {[%clk 00:03:25]}
{[%emt 00:00:16]} Qh5 {[%clk 00:03:23]} {[%emt 00:00:10]} 30. Ng4 {[%clk
00:02:54]} {[%emt 00:00:30]} Bg7 {[%clk 00:03:15]} {[%emt 00:00:07]} 31. Nxf6
{[%clk 00:02:49]} {[%emt 00:00:06]} Bxf6 {[%clk 00:03:14]} {[%emt 00:00:01]} 32.
Qg4 {[%clk 00:02:37]} {[%emt 00:00:12]} Qxg4 {[%clk 00:03:03]} {[%emt
00:00:11]} 33. hxg4 {[%clk 00:02:36]} Rb6 {[%clk 00:03:02]} {[%emt 00:00:01]}
34. Rab1 {[%clk 00:02:31]} {[%emt 00:00:05]} Kg7 {[%clk 00:02:58]} {[%emt
00:00:05]} 35. g3 {[%clk 00:02:15]} {[%emt 00:00:16]} h6 {[%clk 00:02:42]}
{[%emt 00:00:16]} 36. Be4 {[%clk 00:02:12]} {[%emt 00:00:03]} Ne7 {[%clk
00:02:34]} {[%emt 00:00:07]} 37. Red1 {[%clk 00:02:03]} {[%emt 00:00:09]} Kf7
{[%clk 00:02:22]} {[%emt 00:00:13]} 38. Rd7 {[%clk 00:01:58]} {[%emt 00:00:04]}
Ke8 {[%clk 00:02:19]} {[%emt 00:00:02]} 39. Rc7 {[%clk 00:01:49]} {[%emt
00:00:09]} Nd5 {[%clk 00:02:11]} {[%emt 00:00:09]} 40. Bxd5 {[%clk 00:01:47]}
{[%emt 00:00:02]} exd5 {[%clk 00:02:10]} 41. Rc5 {[%clk 00:01:33]} {[%emt
00:00:13]} d4 {[%clk 00:02:04]} {[%emt 00:00:07]} 42. cxd4 {[%clk 00:01:21]}
{[%emt 00:00:12]} Bxd4 {[%clk 00:02:02]} {[%emt 00:00:02]} 43. Rxa5 {[%clk
00:01:18]} {[%emt 00:00:03]} Rb3 {[%clk 00:02:01]} 44. Kg2 {[%clk 00:01:11]}
{[%emt 00:00:07]} Bxb2 {[%clk 00:01:52]} {[%emt 00:00:09]} 45. Rb5 {[%clk
00:01:10]} {[%emt 00:00:01]} Rxb5 {[%clk 00:01:48]} {[%emt 00:00:04]} 46. axb5
{[%clk 00:01:09]} Bd4 {[%clk 00:01:47]} 47. Rd1 {[%clk 00:01:07]} {[%emt
00:00:02]} Bc5 {[%clk 00:01:46]} {[%emt 00:00:02]} 48. Kf3 {[%clk 00:01:04]}
{[%emt 00:00:03]} b6 {[%clk 00:01:43]} {[%emt 00:00:02]} 49. Ke2 {[%clk
00:01:02]} {[%emt 00:00:02]} Ke7 {[%clk 00:01:42]} {[%emt 00:00:01]} 50. f4
{[%clk 00:01:02]} Ke6 {[%clk 00:01:41]} 51. Kd3 {[%clk 00:00:59]} {[%emt
00:00:03]} Bf2 {[%clk 00:01:39]} {[%emt 00:00:02]} 52. Ke4 {[%clk 00:00:57]}
{[%emt 00:00:02]} Bxg3 {[%clk 00:01:35]} {[%emt 00:00:04]} 53. Rh1 {[%clk
00:00:54]} {[%emt 00:00:02]} Bf2 {[%clk 00:01:32]} {[%emt 00:00:04]} 54. Rxh6+
{[%clk 00:00:52]} {[%emt 00:00:02]} Kf7 {[%clk 00:01:31]} 55. Rc6 {[%clk
00:00:50]} {[%emt 00:00:03]} Ke7 {[%clk 00:01:28]} {[%emt 00:00:02]} 56. g5
{[%clk 00:00:48]} {[%emt 00:00:03]} Kf7 {[%clk 00:01:26]} {[%emt 00:00:02]} 57.
f5 {[%clk 00:00:46]} {[%emt 00:00:01]} Bg1 {[%clk 00:01:25]} {[%emt 00:00:02]}
58. Rc7+ {[%clk 00:00:44]} {[%emt 00:00:02]} Kf8 {[%clk 00:01:23]} {[%emt
00:00:01]} 59. Kd5 {[%clk 00:00:43]} Be3 {[%clk 00:01:21]} {[%emt 00:00:02]} 60.
g6 {[%clk 00:00:41]} {[%emt 00:00:02]} Bg5 {[%clk 00:01:20]} {[%emt 00:00:02]}
61. Ke6 {[%clk 00:00:40]} {[%emt 00:00:01]} Ke8 {[%clk 00:01:16]} {[%emt
00:00:05]} 62. Rb7 {[%clk 00:00:39]} Bd8 {[%clk 00:01:13]} {[%emt 00:00:03]} 63.
Rb8 {[%clk 00:00:37]} {[%emt 00:00:01]} Kf8 {[%clk 00:01:09]} {[%emt 00:00:05]}
64. Rxd8+ {[%clk 00:00:34]} {[%emt 00:00:03]} Kg7 {[%clk 00:01:08]} {[%emt
00:00:01]} 65. Rd7+ {[%clk 00:00:33]} Kf8 {[%clk 00:01:07]} 66. Rb7 {[%clk
00:00:32]} {[%emt 00:00:01]} Kg8 {[%clk 00:01:06]} {[%emt 00:00:02]} 67. Rxb6
{[%clk 00:00:30]} {[%emt 00:00:01]} Kg7 {[%clk 00:01:05]} 68. Rb7+ {[%clk
00:00:28]} {[%emt 00:00:02]} Kh6 {[%clk 00:01:03]} {[%emt 00:00:02]} 69. Kf7
{[%clk 00:00:25]} {[%emt 00:00:03]} Kg5 {[%clk 00:01:01]} {[%emt 00:00:01]} 70.
f6 {[%clk 00:00:24]} {[%emt 00:00:01]} Kf5 {[%clk 00:01:00]} {[%emt 00:00:02]}
71. g7 {[%clk 00:00:23]} Ke5 {[%clk 00:00:59]} {[%emt 00:00:01]} 72. g8=Q
{[%clk 00:00:22]} {[%emt 00:00:01]} Kd6 {[%clk 00:00:58]} {[%emt 00:00:01]} 73.
Qd8+ {[%clk 00:00:21]} {[%emt 00:00:01]} Kc5 {[%clk 00:00:57]} {[%emt
00:00:02]} 74. Rc7+ {[%clk 00:00:20]} Kb4 {[%clk 00:00:55]} {[%emt 00:00:01]}
75. b6 {[%clk 00:00:19]} {[%emt 00:00:02]} Ka5 {[%clk 00:00:54]} 76. b7 {[%clk
00:00:17]} {[%emt 00:00:03]} Ka6 {[%clk 00:00:53]} {[%emt 00:00:01]} 77. Qa8+
{[%clk 00:00:15]} {[%emt 00:00:02]} Kb6 {[%clk 00:00:51]} {[%emt 00:00:01]} 1-0

[Event "Božićni turnir u VaraždinskimToplicama 26.12.2025."]
[Site "Varazdinske Toplice, Croatia"]
[Date "2025.12.26"]
[Round "5.15"]
[White "Ferencak, Neven"]
[Black "Forstnaric, Zdravko"]
[Result "0-1"]
[TimeControl "10"]
[WhiteFideId "14523833"]
[BlackFideId "14523841"]
[WhiteElo "1880"]
[BlackElo "1836"]

1. f4 {[%clk 00:09:58]} g6 {[%clk 00:09:58]} {[%emt 00:00:04]} 2. Nf3 {[%clk
00:09:57]} Bg7 {[%clk 00:09:57]} {[%emt 00:00:01]} 3. d3 {[%clk 00:09:55]}
{[%emt 00:00:02]} Nc6 {[%clk 00:09:55]} {[%emt 00:00:02]} 4. e4 {[%clk
00:09:53]} {[%emt 00:00:01]} d6 {[%clk 00:09:50]} {[%emt 00:00:05]} 5. Nc3
{[%clk 00:09:49]} {[%emt 00:00:04]} Bg4 {[%clk 00:09:46]} {[%emt 00:00:04]} 6.
Be2 {[%clk 00:09:41]} {[%emt 00:00:08]} Nf6 {[%clk 00:09:27]} {[%emt 00:00:19]}
7. O-O {[%clk 00:09:38]} {[%emt 00:00:03]} O-O {[%clk 00:09:26]} {[%emt
00:00:02]} 8. h3 {[%clk 00:09:25]} {[%emt 00:00:12]} Bxf3 {[%clk 00:09:23]}
{[%emt 00:00:02]} 9. Bxf3 {[%clk 00:09:23]} {[%emt 00:00:02]} Nd4 {[%clk
00:09:22]} {[%emt 00:00:01]} 10. Be3 {[%clk 00:09:14]} {[%emt 00:00:10]} c5
{[%clk 00:09:18]} {[%emt 00:00:04]} 11. Bxd4 {[%clk 00:09:05]} {[%emt
00:00:09]} cxd4 {[%clk 00:09:15]} {[%emt 00:00:03]} 12. Ne2 {[%emt 00:00:02]}
e5 {[%clk 00:09:13]} 13. g4 {[%clk 00:08:55]} {[%emt 00:00:10]} Qb6 {[%clk
00:09:07]} {[%emt 00:00:06]} 14. b3 {[%clk 00:08:48]} {[%emt 00:00:07]} Rac8
{[%clk 00:09:05]} {[%emt 00:00:02]} 15. Rc1 {[%clk 00:08:47]} d5 {[%clk
00:09:00]} {[%emt 00:00:05]} 16. fxe5 {[%clk 00:08:37]} {[%emt 00:00:11]} Nd7
{[%clk 00:08:58]} {[%emt 00:00:02]} 17. exd5 {[%clk 00:08:23]} {[%emt
00:00:14]} Nxe5 {[%clk 00:08:55]} {[%emt 00:00:01]} 18. Bg2 {[%clk 00:08:07]}
{[%emt 00:00:17]} Bh6 {[%clk 00:08:47]} {[%emt 00:00:07]} 19. Nf4 {[%clk
00:07:40]} {[%emt 00:00:28]} Qd6 {[%clk 00:08:42]} {[%emt 00:00:05]} 20. Qe1
{[%clk 00:06:44]} {[%emt 00:00:56]} Nc4 {[%clk 00:08:29]} {[%emt 00:00:14]} 21.
bxc4 {[%clk 00:06:29]} {[%emt 00:00:15]} Bxf4 {[%clk 00:08:27]} {[%emt
00:00:01]} 22. Rd1 {[%clk 00:06:28]} {[%emt 00:00:01]} Rce8 {[%clk 00:08:20]}
{[%emt 00:00:07]} 23. Qa5 {[%clk 00:06:23]} {[%emt 00:00:06]} Re2 {[%clk
00:08:02]} {[%emt 00:00:17]} 24. c5 {[%clk 00:06:13]} {[%emt 00:00:10]} Be3+
{[%clk 00:08:01]} {[%emt 00:00:02]} 25. Kh1 {[%clk 00:06:10]} {[%emt 00:00:03]}
Qg3 {[%clk 00:08:00]} {[%emt 00:00:01]} 26. Rg1 {[%clk 00:06:03]} {[%emt
00:00:07]} Bxg1 {[%clk 00:07:45]} {[%emt 00:00:14]} 27. Rxg1 {[%clk 00:06:00]}
{[%emt 00:00:03]} Rxc2 {[%clk 00:07:37]} {[%emt 00:00:09]} 28. d6 {[%clk
00:05:49]} {[%emt 00:00:11]} b6 {[%emt 00:00:23]} 29. cxb6 {[%clk 00:05:19]}
{[%emt 00:00:29]} axb6 {[%clk 00:07:14]} 30. Qxb6 {[%clk 00:05:11]} {[%emt
00:00:08]} Rxa2 {[%clk 00:06:43]} {[%emt 00:00:31]} 31. d7 {[%clk 00:05:05]}
{[%emt 00:00:07]} Qb8 {[%clk 00:06:41]} {[%emt 00:00:02]} 32. Qxd4 {[%clk
00:04:36]} {[%emt 00:00:29]} Qc7 {[%clk 00:06:33]} {[%emt 00:00:08]} 33. Qd5
{[%clk 00:04:21]} {[%emt 00:00:14]} Ra7 {[%clk 00:06:26]} {[%emt 00:00:07]} 34.
Rf1 {[%clk 00:03:59]} {[%emt 00:00:23]} Qxd7 {[%clk 00:06:20]} {[%emt
00:00:06]} 35. Qxd7 {[%clk 00:03:43]} {[%emt 00:00:16]} Rxd7 {[%clk 00:06:19]}
36. Be4 {[%clk 00:03:37]} {[%emt 00:00:05]} Kg7 {[%clk 00:06:06]} {[%emt
00:00:14]} 37. Kg2 {[%clk 00:03:27]} {[%emt 00:00:10]} Rb8 {[%clk 00:06:04]}
{[%emt 00:00:02]} 38. Kg3 {[%clk 00:03:18]} {[%emt 00:00:09]} f6 {[%clk
00:05:56]} {[%emt 00:00:08]} 39. Rc1 {[%clk 00:03:11]} {[%emt 00:00:06]} Rb3
{[%clk 00:05:49]} {[%emt 00:00:06]} 40. Rc5 {[%clk 00:03:05]} {[%emt 00:00:07]}
Re7 {[%clk 00:05:47]} {[%emt 00:00:04]} 41. Kf4 {[%clk 00:02:57]} {[%emt
00:00:08]} Ra3 {[%clk 00:05:34]} {[%emt 00:00:12]} 42. h4 {[%clk 00:02:56]}
{[%emt 00:00:02]} Ra1 {[%clk 00:05:22]} {[%emt 00:00:12]} 43. d4 {[%clk
00:02:42]} {[%emt 00:00:13]} Rf1+ {[%clk 00:05:18]} {[%emt 00:00:04]} 44. Bf3
{[%clk 00:02:41]} {[%emt 00:00:02]} h6 {[%clk 00:05:04]} {[%emt 00:00:13]} 45.
d5 {[%clk 00:02:36]} {[%emt 00:00:05]} g5+ {[%clk 00:05:01]} {[%emt 00:00:03]}
46. hxg5 {[%clk 00:02:35]} {[%emt 00:00:01]} hxg5+ {[%clk 00:05:00]} 47. Kg3
{[%clk 00:02:34]} {[%emt 00:00:01]} Re3 {[%clk 00:04:58]} {[%emt 00:00:01]} 48.
d6 {[%clk 00:02:25]} {[%emt 00:00:10]} Rfxf3+ {[%clk 00:04:56]} {[%emt
00:00:02]} 49. Kg2 {[%clk 00:02:25]} Rd3 {[%clk 00:04:55]} {[%emt 00:00:02]} 50.
Rc7+ {[%clk 00:02:23]} {[%emt 00:00:02]} Kg6 {[%clk 00:04:53]} {[%emt
00:00:02]} 51. d7 {[%clk 00:02:21]} {[%emt 00:00:02]} Rfe3 {[%clk 00:04:51]}
{[%emt 00:00:01]} 52. Kf2 {[%clk 00:02:19]} {[%emt 00:00:03]} Re6 {[%clk
00:04:46]} {[%emt 00:00:04]} 53. Rb7 {[%clk 00:01:59]} {[%emt 00:00:20]} Red6
{[%clk 00:04:44]} {[%emt 00:00:02]} 0-1

[Event "Božićni turnir u VaraždinskimToplicama 26.12.2025."]
[Site "Varazdinske Toplice, Croatia"]
[Date "2025.12.26"]
[Round "6.3"]
[White "Kodric, Vladimir"]
[Black "Vidovic, Sasa"]
[Result "0-1"]
[TimeControl "10"]
[WhiteFideId "14604264"]
[BlackFideId "14505010"]
[WhiteElo "1920"]
[BlackElo "2202"]

1. d4 {[%clk 00:09:59]} Nf6 {[%clk 00:10:00]} 2. c3 {[%clk 00:09:57]} {[%emt
00:00:02]} d6 {[%clk 00:09:59]} 3. Bf4 {[%clk 00:09:56]} {[%emt 00:00:03]} Bg4
{[%clk 00:09:57]} {[%emt 00:00:02]} 4. Nd2 {[%clk 00:09:53]} {[%emt 00:00:02]}
Nbd7 {[%clk 00:09:56]} {[%emt 00:00:03]} 5. h3 {[%clk 00:09:50]} {[%emt
00:00:02]} Bh5 {[%clk 00:09:54]} {[%emt 00:00:01]} 6. Ngf3 {[%clk 00:09:49]}
{[%emt 00:00:01]} c6 {[%clk 00:09:52]} {[%emt 00:00:04]} 7. Qb3 {[%clk
00:09:46]} {[%emt 00:00:02]} b6 {[%clk 00:09:43]} {[%emt 00:00:09]} 8. e3
{[%clk 00:09:43]} {[%emt 00:00:02]} e6 {[%clk 00:09:40]} {[%emt 00:00:04]} 9.
Be2 {[%clk 00:09:40]} {[%emt 00:00:03]} Be7 {[%clk 00:09:34]} {[%emt 00:00:06]}
10. Nc4 {[%clk 00:09:35]} {[%emt 00:00:05]} d5 {[%clk 00:09:20]} {[%emt
00:00:13]} 11. Nd6+ {[%clk 00:09:27]} {[%emt 00:00:08]} Bxd6 {[%clk 00:09:19]}
{[%emt 00:00:02]} 12. Bxd6 {[%clk 00:09:26]} {[%emt 00:00:02]} Ne4 {[%clk
00:09:10]} {[%emt 00:00:08]} 13. Bh2 {[%clk 00:09:23]} {[%emt 00:00:02]} O-O
{[%clk 00:09:05]} {[%emt 00:00:06]} 14. a4 {[%clk 00:09:15]} {[%emt 00:00:09]}
c5 {[%clk 00:08:42]} {[%emt 00:00:22]} 15. Qd1 {[%clk 00:09:12]} {[%emt
00:00:02]} c4 {[%clk 00:08:30]} {[%emt 00:00:13]} 16. O-O {[%clk 00:09:09]}
{[%emt 00:00:03]} a6 {[%clk 00:08:16]} {[%emt 00:00:14]} 17. Ne5 {[%clk
00:09:04]} {[%emt 00:00:04]} Bxe2 {[%clk 00:08:11]} {[%emt 00:00:05]} 18. Qxe2
{[%clk 00:09:02]} {[%emt 00:00:01]} Nxe5 {[%clk 00:08:09]} {[%emt 00:00:04]} 19.
Bxe5 {[%clk 00:09:01]} {[%emt 00:00:01]} f6 {[%clk 00:07:57]} {[%emt 00:00:12]}
20. Bh2 {[%clk 00:08:58]} {[%emt 00:00:02]} Qd7 {[%clk 00:07:52]} {[%emt
00:00:06]} 21. Qc2 {[%clk 00:08:54]} {[%emt 00:00:04]} b5 {[%clk 00:07:44]}
{[%emt 00:00:08]} 22. axb5 {[%clk 00:08:50]} {[%emt 00:00:03]} axb5 {[%clk
00:07:43]} {[%emt 00:00:01]} 23. f3 {[%clk 00:08:49]} {[%emt 00:00:02]} Ng5
{[%clk 00:07:36]} {[%emt 00:00:07]} 24. b3 {[%clk 00:08:45]} {[%emt 00:00:04]}
Nf7 {[%clk 00:07:16]} {[%emt 00:00:20]} 25. Qb2 {[%clk 00:08:39]} {[%emt
00:00:06]} Nd6 {[%clk 00:06:29]} {[%emt 00:00:48]} 26. b4 {[%clk 00:08:35]}
{[%emt 00:00:03]} Nf5 {[%clk 00:06:10]} {[%emt 00:00:19]} 27. e4 {[%clk
00:08:09]} {[%emt 00:00:26]} Ne7 {[%clk 00:05:56]} {[%emt 00:00:14]} 28. Rxa8
{[%emt 00:00:04]} Rxa8 {[%emt 00:00:01]} 29. Ra1 {[%clk 00:08:03]} {[%emt
00:00:02]} Qb7 {[%clk 00:05:22]} {[%emt 00:00:33]} 30. Bd6 {[%clk 00:07:54]}
{[%emt 00:00:08]} Nc8 {[%clk 00:04:38]} {[%emt 00:00:44]} 31. e5 {[%clk
00:07:50]} {[%emt 00:00:04]} fxe5 {[%clk 00:02:57]} {[%emt 00:01:42]} 32. Bxe5
{[%emt 00:00:04]} Ne7 33. Bd6 {[%clk 00:07:18]} {[%emt 00:00:28]} Rxa1+ {[%clk
00:02:51]} {[%emt 00:00:07]} 34. Qxa1 {[%emt 00:00:04]} Nf5 {[%clk 00:02:46]}
{[%emt 00:00:03]} 35. Bf4 {[%clk 00:07:07]} {[%emt 00:00:07]} h6 {[%clk
00:02:39]} {[%emt 00:00:07]} 36. Qa5 {[%clk 00:07:06]} {[%emt 00:00:02]} Qd7
{[%clk 00:02:38]} {[%emt 00:00:01]} 37. g4 {[%clk 00:06:51]} {[%emt 00:00:14]}
Nh4 {[%clk 00:02:37]} {[%emt 00:00:01]} 38. Qa8+ {[%clk 00:06:39]} {[%emt
00:00:13]} Kh7 {[%clk 00:02:35]} {[%emt 00:00:02]} 39. Kf2 {[%clk 00:06:26]}
{[%emt 00:00:11]} Qf7 {[%clk 00:02:33]} {[%emt 00:00:04]} 40. Ke3 {[%clk
00:06:08]} {[%emt 00:00:18]} g5 {[%clk 00:02:30]} {[%emt 00:00:03]} 41. Be5
{[%clk 00:06:06]} {[%emt 00:00:02]} Qxf3+ {[%clk 00:02:28]} {[%emt 00:00:02]}
42. Kd2 {[%clk 00:06:04]} Qf7 {[%clk 00:02:09]} {[%emt 00:00:21]} 43. Qh8+
{[%clk 00:05:58]} {[%emt 00:00:05]} Kg6 {[%clk 00:02:08]} 44. Ke2 {[%clk
00:05:30]} {[%emt 00:00:29]} Nf3 {[%clk 00:02:00]} {[%emt 00:00:09]} 45. Bd6
{[%clk 00:05:23]} {[%emt 00:00:07]} Ng1+ {[%clk 00:01:57]} {[%emt 00:00:03]} 46.
Kd2 {[%clk 00:05:07]} {[%emt 00:00:16]} Nxh3 {[%clk 00:01:49]} {[%emt
00:00:08]} 47. Qb8 {[%clk 00:05:04]} {[%emt 00:00:02]} Nf2 {[%clk 00:01:46]}
{[%emt 00:00:04]} 48. Be5 {[%clk 00:04:41]} {[%emt 00:00:22]} Nxg4 {[%clk
00:01:43]} {[%emt 00:00:04]} 49. Qxb5 {[%clk 00:04:39]} {[%emt 00:00:02]} Kf5
{[%clk 00:01:34]} {[%emt 00:00:10]} 50. Qb8 {[%clk 00:04:32]} {[%emt 00:00:06]}
Ke4 {[%clk 00:01:30]} {[%emt 00:00:03]} 51. Qh8 {[%clk 00:04:08]} {[%emt
00:00:25]} Qf2+ {[%clk 00:01:28]} {[%emt 00:00:02]} 52. Kc1 {[%clk 00:04:05]}
{[%emt 00:00:02]} Kd3 {[%clk 00:01:24]} {[%emt 00:00:04]} 53. Qh7+ {[%clk
00:04:02]} {[%emt 00:00:03]} Kxc3 {[%clk 00:01:23]} {[%emt 00:00:01]} 0-1

[Event "Božićni turnir u VaraždinskimToplicama 26.12.2025."]
[Site "Varazdinske Toplice, Croatia"]
[Date "2025.12.26"]
[Round "6.4"]
[White "Radic, Goran"]
[Black "Soelkner, Julian"]
[Result "1-0"]
[TimeControl "10"]
[WhiteFideId "14533995"]
[BlackFideId "1665421"]
[WhiteElo "2051"]
[BlackElo "1661"]

1. d4 {[%clk 00:09:57]} {[%emt 00:00:03]} Nf6 {[%clk 00:09:59]} {[%emt
00:00:02]} 2. Nc3 {[%clk 00:09:56]} e6 {[%clk 00:09:57]} {[%emt 00:00:01]} 3.
Bf4 {[%clk 00:09:54]} {[%emt 00:00:02]} c5 {[%clk 00:09:55]} {[%emt 00:00:03]}
4. d5 {[%clk 00:09:49]} {[%emt 00:00:05]} exd5 {[%clk 00:09:48]} {[%emt
00:00:06]} 5. Nxd5 {[%clk 00:09:48]} {[%emt 00:00:01]} d6 {[%clk 00:09:01]}
{[%emt 00:00:47]} 6. c4 {[%clk 00:09:31]} {[%emt 00:00:17]} Nxd5 {[%clk
00:08:32]} {[%emt 00:00:30]} 7. Qxd5 {[%clk 00:09:27]} {[%emt 00:00:04]} Nc6
{[%clk 00:07:25]} {[%emt 00:01:08]} 8. Nf3 {[%clk 00:08:59]} {[%emt 00:00:27]}
Be6 {[%clk 00:07:13]} {[%emt 00:00:12]} 9. Qd3 {[%clk 00:08:54]} {[%emt
00:00:05]} Be7 {[%clk 00:06:59]} {[%emt 00:00:13]} 10. g3 {[%clk 00:08:12]}
{[%emt 00:00:42]} Nb4 {[%clk 00:06:10]} {[%emt 00:00:50]} 11. Qd2 {[%clk
00:07:24]} {[%emt 00:00:48]} Qa5 {[%clk 00:04:34]} {[%emt 00:01:36]} 12. Rc1
{[%clk 00:07:19]} {[%emt 00:00:04]} Qxa2 {[%clk 00:03:51]} {[%emt 00:00:43]} 13.
Bg2 {[%clk 00:07:14]} {[%emt 00:00:05]} Rd8 {[%clk 00:03:33]} {[%emt 00:00:19]}
14. O-O {[%clk 00:07:07]} {[%emt 00:00:07]} O-O {[%clk 00:03:30]} {[%emt
00:00:04]} 15. Ra1 {[%clk 00:06:56]} {[%emt 00:00:10]} Qxc4 {[%clk 00:03:28]}
{[%emt 00:00:02]} 16. Rxa7 {[%clk 00:06:52]} {[%emt 00:00:03]} Rd7 {[%clk
00:03:16]} {[%emt 00:00:12]} 17. Ng5 {[%clk 00:06:20]} {[%emt 00:00:32]} Bd5
{[%clk 00:03:02]} {[%emt 00:00:15]} 18. Rc1 {[%clk 00:06:13]} {[%emt 00:00:07]}
Qb3 {[%clk 00:03:01]} {[%emt 00:00:01]} 19. Rc3 {[%clk 00:06:05]} {[%emt
00:00:08]} Qxc3 {[%clk 00:01:26]} {[%emt 00:01:35]} 20. bxc3 {[%clk 00:05:54]}
{[%emt 00:00:10]} Bxg2 {[%clk 00:01:24]} {[%emt 00:00:02]} 21. cxb4 {[%clk
00:05:43]} {[%emt 00:00:11]} Bc6 {[%clk 00:01:20]} {[%emt 00:00:04]} 22. h4
{[%clk 00:04:21]} {[%emt 00:01:22]} cxb4 {[%clk 00:01:16]} {[%emt 00:00:04]} 23.
Qxb4 {[%clk 00:04:10]} {[%emt 00:00:11]} d5 {[%clk 00:01:03]} {[%emt 00:00:13]}
24. Qb1 {[%clk 00:04:06]} {[%emt 00:00:04]} g6 {[%clk 00:00:56]} {[%emt
00:00:08]} 25. h5 {[%clk 00:03:56]} {[%emt 00:00:09]} d4 {[%clk 00:00:51]}
{[%emt 00:00:05]} 26. Qd3 {[%clk 00:03:29]} {[%emt 00:00:27]} Bf6 {[%clk
00:00:40]} {[%emt 00:00:11]} 27. Nf3 {[%clk 00:03:09]} {[%emt 00:00:20]} Re8
{[%clk 00:00:36]} {[%emt 00:00:05]} 28. Ra1 {[%clk 00:02:53]} {[%emt 00:00:15]}
Be4 {[%clk 00:00:36]} 29. Qb5 {[%clk 00:02:44]} {[%emt 00:00:09]} Bc6 {[%clk
00:00:32]} {[%emt 00:00:05]} 30. Qd3 {[%clk 00:02:14]} {[%emt 00:00:30]} Be4
{[%clk 00:00:32]} 31. Qa3 {[%clk 00:01:50]} {[%emt 00:00:24]} d3 {[%clk
00:00:30]} {[%emt 00:00:02]} 32. Re1 {[%clk 00:01:34]} {[%emt 00:00:16]} Bxf3
{[%clk 00:00:27]} {[%emt 00:00:03]} 33. hxg6 {[%clk 00:01:18]} {[%emt
00:00:16]} hxg6 {[%clk 00:00:27]} {[%emt 00:00:01]} 34. e4 {[%clk 00:01:02]}
{[%emt 00:00:15]} d2 {[%clk 00:00:25]} {[%emt 00:00:02]} 35. Bxd2 {[%clk
00:01:01]} {[%emt 00:00:01]} Rxd2 {[%clk 00:00:24]} 36. Qxf3 {[%clk 00:01:00]}
{[%emt 00:00:01]} Bd4 {[%clk 00:00:22]} {[%emt 00:00:02]} 37. Re2 {[%clk
00:00:58]} {[%emt 00:00:02]} Rd1+ {[%clk 00:00:19]} {[%emt 00:00:03]} 38. Kg2
{[%clk 00:00:56]} {[%emt 00:00:01]} Bc5 {[%clk 00:00:16]} {[%emt 00:00:04]} 39.
e5 {[%clk 00:00:54]} {[%emt 00:00:01]} Rd7 {[%clk 00:00:11]} {[%emt 00:00:06]}
40. e6 {[%clk 00:00:51]} {[%emt 00:00:03]} Rxe6 {[%clk 00:00:07]} {[%emt
00:00:03]} 41. Rxe6 {[%clk 00:00:50]} {[%emt 00:00:01]} fxe6 {[%clk 00:00:06]}
42. Qf6 {[%clk 00:00:50]} Re7 {[%clk 00:00:04]} {[%emt 00:00:03]} 43. Qxg6+
{[%clk 00:00:49]} {[%emt 00:00:01]} Kf8 {[%clk 00:00:03]} 44. Qh6+ {[%clk
00:00:43]} {[%emt 00:00:06]} Ke8 {[%clk 00:00:03]} 45. Qh5+ Kd7 {[%emt
00:00:01]} 46. Qxc5 {[%clk 00:00:42]} 1-0